bitfinex/quotes_SOLUSD_20251201
["timestamp","ask_amount","ask_price","bid_price","bid_amount"]
[1764565341524,8.67659857,126.58,126.55,7.90187711]
[1764565341816,3.5,126.57,126.55,7.90187711]
[1764565342028,12.17659857,126.57,126.53,7.90310542]
[1764565342203,8.67659857,126.56,126.53,7.90310542]
[1764565342599,0.68,126.55,126.53,7.90310542]
[1764565343121,0.68,126.56,126.53,7.99659857]
[1764565343618,0.68,126.56,126.53,8.68659857]
[1764565343817,4.18,126.56,126.52,7.90388871]
[1764565344123,4.18,126.56,126.52,16.59048728]
[1764565346126,0.66,126.55,126.52,16.59048728]
[1764565346624,3.5,126.57,126.53,8.65659857]
[1764565346812,11.49659857,126.57,126.53,0.66]
[1764565347008,0.66,126.56,126.53,0.66]
[1764565347413,11.49659857,126.57,126.53,0.66]
[1764565347630,0.66,126.56,126.53,0.66]
[1764565348026,0.66,126.56,126.54,7.90263948]
[1764565348721,8.65659857,126.56,126.53,7.90303504]
[1764565349825,7.99659857,126.56,126.53,7.90303504]
[1764565350126,0.71,126.55,126.53,7.90303504]
[1764565350305,0.71,126.55,126.52,15.9003081]
[1764565350508,0.71,126.55,126.51,27.80510579]
[1764565350707,3.59175402,126.55,126.51,27.80510579]
[1764565351229,0.71,126.54,126.51,27.80510579]
[1764565351433,11.49315764,126.56,126.52,0.71]
[1764565351611,0.71,126.55,126.51,43.40510579]
[1764565352722,3.59175402,126.55,126.51,43.40510579]
[1764565353410,3.59175402,126.55,126.51,40.52335177]
[1764565353617,0.71,126.54,126.51,43.40510579]
[1764565353815,0.71,126.54,126.51,42.69510579]
[1764565354026,0.71,126.54,126.51,43.40510579]
[1764565357414,0.71,126.54,126.51,40.52335177]
[1764565357630,0.71,126.54,126.51,43.40510579]
[1764565357833,3.5,126.53,126.5,15.6]
[1764565358033,2.88175402,126.51,126.5,15.6]
[1764565358217,2.88175402,126.51,126.46,11.49939279]
[1764565358416,3.59175402,126.5,126.46,11.49939279]
[1764565358926,2.88175402,126.5,126.46,11.49939279]
[1764565359131,0.71,126.49,126.46,11.49939279]
[1764565359936,0.71,126.49,126.46,31.26848973]
[1764565360435,0.71,126.49,126.46,32.89365087]
[1764565360635,4.50691516,126.5,126.46,32.89365087]
[1764565360938,0.71,126.5,126.46,32.89365087]
[1764565361234,0.71,126.49,126.46,7.90763877]
[1764565361436,4.50691516,126.47,126.45,0.1]
[1764565361935,5.21691516,126.47,126.45,0.1]
[1764565362439,0.71,126.47,126.45,0.1]
[1764565363733,5.21691516,126.47,126.45,0.1]
[1764565364520,0.71,126.46,126.45,0.1]
[1764565364922,5.21691516,126.46,126.45,0.1]
[1764565365437,14.02686008,126.46,126.45,0.1]
[1764565365932,21.93449885,126.46,126.45,0.1]
[1764565369062,8.80994492,126.42,126.4,0.1]
[1764565369218,8.80994492,126.38,126.33,7.91577614]
[1764565369414,8.00691516,126.37,126.33,7.91577614]
[1764565369653,8.71691516,126.37,126.33,7.91577614]
[1764565369822,8.71691516,126.37,126.34,0.71]
[1764565370022,8.71691516,126.37,126.33,7.91577614]
[1764565370362,4.50691516,126.36,126.33,0.71]
[1764565371044,12.12335734,126.37,126.33,0.71]
[1764565371045,4.50691516,126.38,126.34,4.50691516]
[1764565371347,4.50691516,126.38,126.34,12.42206475]
[1764565371348,5.21691516,126.38,126.34,12.42206475]
[1764565371527,5.21691516,126.38,126.34,13.13206475]
[1764565371732,5.21691516,126.38,126.34,12.42206475]
[1764565371919,5.21691516,126.38,126.35,0.71]
[1764565372239,8.00691516,126.39,126.35,0.71]
[1764565372444,3.5,126.39,126.35,5.21691516]
[1764565372831,4.21,126.39,126.35,5.21691516]
[1764565373142,4.21,126.39,126.35,4.50691516]
[1764565373314,4.21,126.39,126.35,5.21691516]
[1764565373516,4.21,126.39,126.36,0.71]
[1764565374225,0.71,126.39,126.36,0.71]
[1764565374745,0.71,126.39,126.36,8.62389142]
[1764565376139,16.7561498,126.4,126.36,8.62389142]
[1764565376446,16.7561498,126.41,126.37,13.2661498]
[1764565376750,3.5,126.41,126.38,20.4887942]
[1764565376954,3.5,126.41,126.38,21.1787942]
[1764565377129,3.5,126.41,126.38,8.6026444]
[1764565377331,3.5,126.41,126.38,21.1787942]
[1764565377866,3.5,126.41,126.39,13.2661498]
[1764565378029,3.5,126.41,126.39,12.5761498]
[1764565378349,3.5,126.41,126.39,13.2661498]
[1764565378929,3.5,126.41,126.4,21.1775422]
[1764565379131,3.5,126.41,126.4,36.7775422]
[1764565379643,3.5,126.41,126.4,23.5113924]
[1764565380344,0.68,126.43,126.4,23.5113924]
[1764565380547,8.58789002,126.46,126.42,12.5761498]
[1764565380736,0.68,126.45,126.42,28.1761498]
[1764565381434,0.68,126.45,126.42,15.6]
[1764565381638,0.68,126.45,126.43,7.90951514]
[1764565381828,11.40789002,126.46,126.43,8.59951514]
[1764565382028,12.08789002,126.46,126.43,7.90951514]
[1764565382554,0.68,126.45,126.43,7.90951514]
[1764565383052,21.38609472,126.44,126.42,15.6]
[1764565383251,3.5,126.43,126.42,15.6]
[1764565383433,4.18,126.43,126.41,7.91076655]
[1764565383747,3.5,126.43,126.41,20.48691635]
[1764565384330,0.68,126.42,126.4,23.51138499]
[1764565384892,3.5,126.43,126.4,36.08753479]
[1764565385162,0.68,126.44,126.41,13.2661498]
[1764565385333,12.08839749,126.45,126.41,13.2661498]
[1764565385823,12.08839749,126.45,126.42,7.9101408]
[1764565386329,3.5,126.45,126.43,0.69]
[1764565386535,3.5,126.45,126.42,20.4862906]
[1764565386837,3.5,126.45,126.42,21.1762906]
[1764565387046,3.5,126.45,126.42,36.7762906]
[1764565387559,0.68,126.44,126.42,23.5101408]
[1764565389057,3.5,126.45,126.42,36.0862906]
[1764565389261,3.5,126.45,126.43,12.5761498]
[1764565389445,3.5,126.45,126.43,13.2661498]
[1764565390141,3.5,126.45,126.44,7.90888959]
[1764565390530,12.5761498,126.49,126.44,56.54726336]
[1764565390744,3.5,126.48,126.44,56.54726336]
[1764565391061,4.18,126.48,126.45,12.5761498]
[1764565391631,3.5,126.48,126.44,56.54726336]
[1764565391851,8.80994492,126.46,126.44,15.6]
[1764565392030,8.80994492,126.46,126.43,7.90947036]
[1764565392238,0.68,126.45,126.43,7.90947036]
[1764565394267,16.7561498,126.48,126.43,12.5761498]
[1764565394566,16.7561498,126.48,126.45,12.5761498]
[1764565394567,4.18,126.48,126.45,12.5761498]
[1764565394876,3.5,126.48,126.45,12.5761498]
[1764565395170,3.5,126.48,126.45,28.8661498]
[1764565395538,0.68,126.48,126.45,28.8661498]
[1764565396137,3.5,126.49,126.45,28.8661498]
[1764565396342,13.2561498,126.48,126.45,7.90803817]
[1764565396872,0.68,126.47,126.45,7.90803817]
[1764565399465,4.18,126.49,126.45,21.17418797]
[1764565399967,4.18,126.49,126.44,16.308864]
[1764565399968,13.2561498,126.48,126.44,7.90861658]
[1764565400143,12.5761498,126.47,126.44,7.90861658]
[1764565400454,13.2561498,126.47,126.44,7.90861658]
[1764565400772,12.5761498,126.48,126.45,0.69]
[1764565400945,16.0761498,126.49,126.45,13.2661498]
[1764565401268,0.68,126.48,126.45,13.2661498]
[1764565401463,4.18,126.49,126.46,7.90763877]
[1764565401970,4.18,126.49,126.46,23.50763877]
[1764565402671,8.80994492,126.51,126.48,12.5761498]
[1764565402849,8.80994492,126.51,126.47,15.6]
[1764565402850,0.68,126.5,126.47,15.6]
[1764565403674,24.88609472,126.51,126.48,7.90638836]
[1764565403675,3.5,126.51,126.48,7.90638836]
[1764565403862,4.18,126.51,126.48,7.90638836]
[1764565405073,3.5,126.51,126.48,21.19253816]
[1764565405259,3.5,126.51,126.48,40.95850906]
[1764565406073,3.5,126.51,126.49,13.2261498]
[1764565406488,4.22,126.51,126.49,12.5761498]
[1764565407090,3.5,126.51,126.49,12.5761498]
[1764565407555,4.22,126.51,126.48,28.32235926]
[1764565407762,13.2961498,126.5,126.48,7.90638836]
[1764565407970,0.72,126.5,126.48,7.90638836]
[1764565408281,0.72,126.49,126.46,40.90230438]
[1764565408470,3.5,126.51,126.48,13.2261498]
[1764565408673,4.22,126.51,126.47,12.5761498]
[1764565408867,4.22,126.51,126.47,13.2261498]
[1764565409257,0.72,126.5,126.46,40.25230438]
[1764565409463,0.72,126.5,126.46,40.90230438]
[1764565409779,13.2961498,126.5,126.46,40.90230438]
[1764565411781,0.72,126.5,126.46,40.90230438]
[1764565412076,13.2961498,126.5,126.46,40.90230438]
[1764565412378,12.5761498,126.48,126.45,7.90802062]
[1764565412584,0.72,126.47,126.44,7.90888959]
[1764565413161,3.5,126.48,126.44,21.13503939]
[1764565413482,4.22,126.48,126.44,28.33111356]
[1764565413663,4.22,126.48,126.44,40.90726336]
[1764565413965,13.2961498,126.47,126.44,7.90888959]
[1764565414956,0.72,126.46,126.44,7.90888959]
[1764565415372,13.2961498,126.47,126.44,7.90888959]
[1764565415562,0.72,126.46,126.44,7.90888959]
[1764565416482,4.50915261,126.47,126.44,7.90888959]
[1764565416670,5.22915261,126.47,126.44,8.55888959]
[1764565416880,5.22915261,126.47,126.44,7.90888959]
[1764565417893,0.72,126.46,126.44,7.90888959]
[1764565418995,5.22915261,126.46,126.43,24.21809899]
[1764565419389,8.80994492,126.51,126.46,16.308864]
[1764565419686,5.22915261,126.5,126.46,20.10915261]
[1764565419898,5.22915261,126.5,126.45,20.10915261]
[1764565420077,0.72,126.49,126.45,20.10915261]
[1764565420277,0.72,126.49,126.45,20.75915261]
[1764565421192,0.72,126.49,126.46,7.90763877]
[1764565421490,0.72,126.49,126.46,13.06679138]
[1764565421686,0.72,126.49,126.46,8.55763877]
[1764565421877,0.72,126.49,126.46,13.06679138]
[1764565422186,8.80994492,126.5,126.47,4.50915261]
[1764565422417,0.72,126.5,126.47,3.5340421]
[1764565422598,3.5,126.49,126.47,2.8840421]
[1764565422890,3.5,126.49,126.46,28.32673571]
[1764565423063,4.22,126.49,126.46,30.56077781]
[1764565423262,0.72,126.49,126.46,30.56077781]
[1764565423480,4.22,126.49,126.46,30.56077781]
[1764565423675,0.72,126.48,126.46,7.90763877]
[1764565425790,0.72,126.48,126.46,10.79168087]
[1764565425995,4.22,126.48,126.46,10.79168087]
[1764565426988,4.22,126.48,126.46,7.90763877]
[1764565428675,4.22,126.48,126.46,23.50763877]
[1764565430481,4.22,126.48,126.46,15.6]
[1764565431199,0.72,126.47,126.46,15.6]
[1764565432883,0.72,126.49,126.46,15.6]
[1764565433083,0.72,126.49,126.46,26.39166041]
[1764565433298,3.5,126.48,126.46,27.04166041]
[1764565434994,3.5,126.48,126.46,46.81075735]
[1764565435383,3.5,126.48,126.46,27.04166041]
[1764565436110,0.67,126.51,126.47,3.5640421]
[1764565436406,3.5,126.49,126.47,19.1640421]
[1764565436809,3.5,126.49,126.47,23.50676732]
[1764565436985,4.17,126.49,126.47,23.50676732]
[1764565437582,9.47994492,126.52,126.48,0.68]
[1764565437808,4.17,126.51,126.47,26.39080942]
[1764565437981,4.17,126.51,126.47,23.50676732]
[1764565437982,7.0540421,126.51,126.47,23.50676732]
[1764565438183,0.67,126.5,126.47,23.50676732]
[1764565440083,11.69398702,126.49,126.47,15.6]
[1764565440285,3.5,126.48,126.47,15.6]
[1764565440484,7.0540421,126.48,126.45,7.90798776]
[1764565440791,3.5,126.48,126.45,28.3586481]
[1764565441411,4.17,126.48,126.45,28.3586481]
[1764565441914,4.17,126.48,126.45,31.2426902]
[1764565443508,4.17,126.48,126.45,46.8426902]
[1764565445014,8.80994492,126.51,126.47,2.8840421]
[1764565445215,8.80994492,126.51,126.46,8.58709906]
[1764565445216,0.67,126.51,126.48,2.8840421]
[1764565445406,7.90196798,126.56,126.5,2.8840421]
[1764565445605,4.17,126.55,126.52,2.8840421]
[1764565446006,2.8840421,126.53,126.49,2.8840421]
[1764565446498,0.67,126.52,126.49,2.8840421]
[1764565446908,0.67,126.52,126.49,10.7894387]
[1764565447398,0.67,126.52,126.49,7.9053966]
[1764565447703,6.3840421,126.51,126.48,7.9061201]
[1764565448105,0.67,126.5,126.48,7.9061201]
[1764565448821,0.67,126.5,126.46,3.5640421]
[1764565449007,3.5540421,126.5,126.46,3.5640421]
[1764565449208,3.5540421,126.5,126.46,0.68]
[1764565449417,0.67,126.49,126.46,0.68]
[1764565449608,0.67,126.49,126.45,23.33380678]
[1764565449809,0.67,126.49,126.46,8.58763877]
[1764565450115,2.8840421,126.5,126.46,8.58763877]
[1764565450320,0.67,126.49,126.46,8.58763877]
[1764565450733,3.5,126.5,126.47,0.68]
[1764565450936,0.67,126.5,126.47,8.58655947]
[1764565451102,4.17,126.5,126.47,8.58655947]
[1764565452923,4.17,126.5,126.47,7.90655947]
[1764565453123,4.17,126.5,126.47,8.58655947]
[1764565453426,4.17,126.5,126.47,7.90655947]
[1764565454018,3.5,126.51,126.48,3.5640421]
[1764565454219,4.17,126.51,126.48,3.5640421]
[1764565455013,4.17,126.51,126.49,7.9057633]
[1764565455917,3.5,126.51,126.49,7.9057633]
[1764565456304,3.5440421,126.54,126.5,0.72]
[1764565456503,3.5440421,126.54,126.5,3.6040421]
[1764565456504,3.5,126.53,126.5,3.6040421]
[1764565456727,4.16,126.53,126.5,3.6040421]
[1764565456929,3.5,126.53,126.52,7.90388871]
[1764565457124,4.16,126.54,126.52,7.90388871]
[1764565457715,0.66,126.53,126.51,7.90427933]
[1764565458036,4.16,126.54,126.51,8.62427933]
[1764565458709,4.16,126.54,126.51,7.90427933]
[1764565459033,0.66,126.53,126.51,7.90427933]
[1764565459219,4.16,126.54,126.51,10.78832143]
[1764565459961,0.66,126.56,126.52,3.6040421]
[1764565460130,4.16,126.55,126.52,3.6040421]
[1764565460330,4.16,126.55,126.51,27.66556302]
[1764565460331,4.16,126.55,126.51,31.26960512]
[1764565460507,0.66,126.54,126.51,30.54960512]
[1764565460706,3.5440421,126.54,126.51,7.90427933]
[1764565461130,0.66,126.53,126.51,7.90427933]
[1764565463429,0.66,126.53,126.51,7.75391533]
[1764565465948,0.66,126.53,126.5,7.90513833]
[1764565466416,3.5,126.52,126.5,7.90513833]
[1764565467138,4.21,126.52,126.5,7.90513833]
[1764565467452,4.21,126.52,126.5,23.50513833]
[1764565468034,3.5,126.52,126.5,26.38918043]
[1764565468249,3.5,126.52,126.51,0.71]
[1764565468441,3.5,126.52,126.5,27.09918043]
[1764565468631,3.5,126.52,126.5,26.38918043]
[1764565468829,3.5,126.52,126.5,23.50513833]
[1764565469035,0.71,126.54,126.5,27.09918043]
[1764565469235,4.21,126.53,126.5,27.09918043]
[1764565469431,8.80994492,126.54,126.51,0.71]
[1764565469635,13.01994492,126.54,126.51,0.71]
[1764565469838,13.01994492,126.54,126.5,26.38918043]
[1764565470042,0.71,126.53,126.5,27.09918043]
[1764565472047,0.71,126.56,126.52,2.8840421]
[1764565472344,0.71,126.56,126.52,18.4840421]
[1764565472642,0.2,126.57,126.53,3.5940421]
[1764565472842,3.5,126.56,126.53,3.5940421]
[1764565473241,4.21,126.56,126.53,3.5940421]
[1764565474044,0.71,126.55,126.52,23.50346104]
[1764565474350,3.5940421,126.55,126.52,23.50346104]
[1764565474753,0.71,126.55,126.52,7.90346104]
[1764565476754,3.5940421,126.55,126.52,7.90346104]
[1764565476951,2.8840421,126.53,126.49,15.6]
[1764565477155,3.5,126.52,126.49,7.9057633]
[1764565477358,7.0940421,126.52,126.49,7.9057633]
[1764565477555,0.71,126.51,126.49,7.9057633]
[1764565478438,6.3840421,126.52,126.49,7.9057633]
[1764565478738,4.21,126.52,126.49,8.6157633]
[1764565480157,7.0940421,126.52,126.49,8.6157633]
[1764565480557,4.21,126.52,126.49,8.6157633]
[1764565482243,3.5,126.52,126.49,7.9057633]
[1764565482444,0.71,126.51,126.49,7.9057633]
[1764565482645,5.21554649,126.51,126.48,7.90621199]
[1764565482844,4.50554649,126.5,126.48,7.90621199]
[1764565483047,5.21554649,126.5,126.48,7.90621199]
[1764565483254,0.71,126.5,126.48,7.90621199]
[1764565483561,0.71,126.5,126.47,7.90701352]
[1764565483760,0.71,126.5,126.47,8.61701352]
[1764565484064,4.21,126.5,126.47,8.61701352]
[1764565484662,4.21,126.5,126.47,13.12256001]
[1764565484864,4.21,126.5,126.47,12.41256001]
[1764565485258,4.21,126.5,126.47,7.90701352]
[1764565485562,0.71,126.5,126.47,7.90701352]
[1764565485753,4.21,126.5,126.47,7.90701352]
[1764565485946,3.5,126.5,126.47,7.90701352]
[1764565486142,4.21,126.5,126.47,13.12256001]
[1764565486348,4.21,126.5,126.47,8.61701352]
[1764565488064,4.21,126.5,126.47,24.21701352]
[1764565489762,0.71,126.49,126.47,23.50701352]
[1764565490169,4.21,126.5,126.47,24.21701352]
[1764565490475,0.71,126.49,126.47,23.50701352]
[1764565492658,3.5,126.5,126.47,24.21701352]
[1764565492859,4.21,126.5,126.47,24.21701352]
[1764565493053,3.5,126.51,126.48,0.71]
[1764565493254,4.21,126.51,126.48,0.71]
[1764565493567,3.5,126.51,126.48,5.21554649]
[1764565493960,3.5,126.51,126.48,16.31]
[1764565495348,3.5,126.51,126.49,7.9057633]
[1764565497502,0.71,126.52,126.49,7.9057633]
[1764565497681,8.71554649,126.52,126.49,8.6257633]
[1764565497974,16.61961833,126.52,126.48,15.6]
[1764565498151,4.50554649,126.49,126.48,15.6]
[1764565498356,4.50554649,126.5,126.48,15.6]
[1764565498572,5.19554649,126.5,126.48,15.6]
[1764565499076,0.69,126.5,126.48,23.50630541]
[1764565499253,4.19,126.5,126.48,23.50630541]
[1764565501363,5.19554649,126.49,126.48,15.6]
[1764565501875,0.69,126.49,126.48,15.6]
[1764565503679,8.80994492,126.48,126.45,23.5077936]
[1764565503983,3.5,126.47,126.45,23.5077936]
[1764565504193,4.19,126.47,126.45,23.5077936]
[1764565504391,3.5,126.47,126.45,24.2277936]
[1764565504872,3.5,126.47,126.43,7.90908519]
[1764565504873,14.00549141,126.46,126.43,7.90908519]
[1764565505078,4.50554649,126.45,126.43,7.90908519]
[1764565505392,3.5,126.44,126.43,7.90908519]
[1764565505610,4.19,126.44,126.43,7.90908519]
[1764565505894,3.5,126.44,126.43,7.90908519]
[1764565506263,3.5,126.44,126.42,7.9101408]
[1764565506603,4.19,126.44,126.42,7.9101408]
[1764565506966,5.19554649,126.43,126.4,41.69368865]
[1764565507168,5.19554649,126.43,126.4,7.9109937]
[1764565507368,0.69,126.42,126.4,7.9109937]
[1764565508181,16.60444346,126.44,126.4,8.6309937]
[1764565508382,0.69,126.43,126.4,8.6309937]
[1764565510188,15.91444346,126.44,126.4,8.6309937]
[1764565510189,8.00554649,126.44,126.4,8.6309937]
[1764565510419,17.50549141,126.46,126.41,5.22554649]
[1764565510701,17.50549141,126.46,126.41,14.03549141]
[1764565510861,17.50549141,126.46,126.42,0.72]
[1764565511772,5.19554649,126.45,126.41,29.62435541]
[1764565511979,5.19554649,126.45,126.41,25.83880892]
[1764565512509,5.19554649,126.45,126.42,7.9101408]
[1764565512679,5.19554649,126.45,126.41,8.80994492]
[1764565512680,4.50554649,126.43,126.41,8.80994492]
[1764565512887,4.50554649,126.42,126.38,15.6]
[1764565513074,14.00549141,126.42,126.38,24.23239126]
[1764565513391,5.19554649,126.42,126.38,24.23239126]
[1764565514085,13.31549141,126.44,126.39,5.22554649]
[1764565514389,13.31549141,126.44,126.38,43.29400227]
[1764565514390,4.50554649,126.42,126.38,44.01400227]
[1764565514563,4.19,126.43,126.37,29.00204738]
[1764565514564,0.69,126.41,126.37,29.00204738]
[1764565514765,5.19554649,126.42,126.37,56.69833632]
[1764565514966,3.5,126.41,126.37,56.69833632]
[1764565515176,8.69554649,126.41,126.37,8.63311256]
[1764565515397,5.19554649,126.4,126.37,0.72]
[1764565515582,4.50554649,126.39,126.37,0.72]
[1764565515777,0.69,126.38,126.37,8.63321607]
[1764565516092,0.69,126.38,126.37,0.72]
[1764565516093,8.69554649,126.38,126.37,0.72]
[1764565516473,16.60819089,126.38,126.37,0.72]
[1764565516787,25.11880892,126.37,126.35,0.1]
[1764565516988,8.00554649,126.36,126.35,0.1]
[1764565517185,4.19,126.36,126.35,0.1]
[1764565517386,8.69554649,126.36,126.35,0.1]
[1764565518988,16.60944329,126.36,126.35,0.1]
[1764565519192,25.41938821,126.36,126.35,0.1]
[1764565520793,14.00549141,126.36,126.35,0.1]
[1764565520983,17.50549141,126.36,126.35,0.1]
[1764565523303,25.41938821,126.36,126.35,0.1]
[1764565526195,29.9249347,126.36,126.35,0.1]
[1764565528192,21.91938821,126.36,126.35,0.1]
[1764565528399,25.41938821,126.36,126.35,0.1]
[1764565529098,8.80994492,126.36,126.35,0.1]
[1764565529309,4.50554649,126.38,126.35,0.1]
[1764565529493,5.21554649,126.38,126.35,0.1]
[1764565529676,3.5,126.37,126.35,0.1]
[1764565529882,8.71554649,126.37,126.35,0.1]
[1764565530293,4.50554649,126.36,126.35,0.1]
[1764565531901,8.71554649,126.37,126.35,0.1]
[1764565533301,4.21,126.37,126.35,0.1]
[1764565533603,3.5,126.36,126.35,0.1]
[1764565533782,0.71,126.37,126.35,0.1]
[1764565534104,3.5,126.36,126.35,0.1]
[1764565534899,5.21554649,126.4,126.35,20.89554649]
[1764565535100,12.30994492,126.39,126.35,20.89554649]
[1764565535303,5.21554649,126.4,126.36,0.69]
[1764565535304,3.5,126.38,126.36,0.69]
[1764565535903,3.5,126.38,126.36,5.19554649]
[1764565536405,3.5,126.38,126.36,0.69]
[1764565536606,3.5,126.38,126.36,5.19554649]
[1764565536805,0.71,126.4,126.37,7.91327055]
[1764565537107,3.5,126.39,126.37,7.91327055]
[1764565537493,3.5,126.39,126.36,13.10923421]
[1764565538413,3.5,126.39,126.37,5.19554649]
[1764565538604,3.5,126.39,126.38,0.69]
[1764565538807,14.02549141,126.42,126.39,7.91201835]
[1764565539011,3.5,126.41,126.39,23.51201835]
[1764565539697,4.21,126.41,126.39,23.51201835]
[1764565540812,4.21,126.41,126.37,4.50554649]
[1764565541510,8.71554649,126.41,126.37,4.50554649]
[1764565542310,8.71554649,126.41,126.37,32.20199342]
[1764565542891,3.5,126.41,126.37,32.48199342]
[1764565543091,3.5,126.41,126.38,12.4176363]
[1764565543413,12.41495352,126.44,126.39,4.50554649]
[1764565543616,0.71,126.45,126.41,4.50554649]
[1764565543796,3.5,126.44,126.41,4.50554649]
[1764565544108,3.5,126.44,126.41,4.78554649]
[1764565544507,3.5,126.44,126.41,3.16644131]
[1764565544705,10.79369937,126.47,126.42,11.07658211]
[1764565545021,3.5,126.46,126.43,2.88644131]
[1764565545187,3.5,126.46,126.43,3.16644131]
[1764565545916,3.5,126.46,126.43,2.88644131]
[1764565546708,3.5,126.46,126.43,10.79535382]
[1764565547112,3.5,126.46,126.43,11.07535382]
[1764565547613,8.80994492,126.48,126.44,2.88644131]
[1764565547812,3.5,126.47,126.44,2.88644131]
[1764565548290,3.5,126.47,126.45,2.88644131]
[1764565548911,3.5,126.47,126.46,7.90763877]
[1764565549717,16.71522514,126.5,126.46,7.90763877]
[1764565550016,3.5,126.49,126.46,30.84317702]
[1764565550216,3.5,126.49,126.47,2.88644131]
[1764565550393,3.5,126.49,126.47,3.16644131]
[1764565550799,3.5,126.49,126.48,7.90638836]
[1764565551297,3.5,126.49,126.48,10.79282967]
[1764565551498,2.88644131,126.53,126.48,11.07282967]
[1764565551800,3.5,126.52,126.48,11.07282967]
[1764565552308,4.21,126.52,126.48,30.55880057]
[1764565552616,2.88644131,126.5,126.46,27.31626173]
[1764565552817,6.38644131,126.49,126.45,11.00816198]
[1764565553201,7.09644131,126.49,126.45,11.28816198]
[1764565553403,0.71,126.48,126.45,11.00816198]
[1764565553807,3.59644131,126.48,126.43,35.55922325]
[1764565554129,2.88644131,126.47,126.44,16.308864]
[1764565554302,3.59644131,126.47,126.44,16.308864]
[1764565554904,2.88644131,126.48,126.44,27.38368874]
[1764565555110,7.09644131,126.49,126.44,27.38368874]
[1764565555511,7.09644131,126.49,126.44,47.15591271]
[1764565556724,3.59644131,126.49,126.44,47.15591271]
[1764565557029,6.38644131,126.49,126.44,47.15591271]
[1764565557330,7.10644131,126.49,126.44,47.15591271]
[1764565560222,0.72,126.49,126.46,7.90763877]
[1764565560422,4.22,126.49,126.46,11.00763877]
[1764565561249,3.5,126.5,126.47,3.16644131]
[1764565561536,4.22,126.52,126.48,2.88644131]
[1764565561715,3.5,126.52,126.49,2.88644131]
[1764565561910,3.5,126.52,126.49,3.16644131]
[1764565562110,4.22,126.52,126.49,2.88644131]
[1764565562321,2.88644131,126.55,126.5,10.79157964]
[1764565562521,4.22,126.56,126.5,44.25684817]
[1764565562723,4.22,126.56,126.51,3.16644131]
[1764565563028,7.10644131,126.56,126.51,3.16644131]
[1764565563208,3.60644131,126.55,126.5,43.97684817]
[1764565563413,2.88644131,126.54,126.5,24.21400233]
[1764565563734,2.88644131,126.54,126.49,3.78]
[1764565563735,2.88644131,126.51,126.46,19.76853975]
[1764565563916,6.38644131,126.51,126.46,22.93498106]
[1764565564238,0.72,126.5,126.46,22.65498106]
[1764565564433,0.72,126.5,126.47,7.90701352]
[1764565565236,0.72,126.5,126.45,32.22770771]
[1764565565237,8.73117966,126.5,126.45,32.22770771]
[1764565565427,8.01117966,126.49,126.45,24.49652805]
[1764565565751,8.73117966,126.49,126.45,24.49652805]
[1764565567055,0.72,126.49,126.45,24.49652805]
[1764565567337,8.73117966,126.49,126.45,24.49652805]
[1764565568161,8.01117966,126.46,126.44,7.90869047]
[1764565568635,8.73117966,126.46,126.44,7.90869047]
[1764565569232,8.80994492,126.49,126.43,35.69303033]
[1764565569431,3.5,126.49,126.45,8.01117966]
[1764565569633,11.51117966,126.5,126.45,8.01117966]
[1764565569829,8.73117966,126.49,126.44,8.29117966]
[1764565570030,8.73117966,126.49,126.44,0.28]
[1764565570233,0.72,126.48,126.44,8.29117966]
[1764565571745,8.73117966,126.48,126.44,8.01117966]
[1764565571931,0.72,126.47,126.43,15.9206948]
[1764565572133,8.73117966,126.48,126.44,0.28]
[1764565572842,8.01117966,126.48,126.44,0.28]
[1764565573045,8.73117966,126.48,126.44,8.29117966]
[1764565573241,8.01117966,126.48,126.44,8.01117966]
[1764565573448,8.73117966,126.48,126.44,8.29117966]
[1764565573951,0.72,126.48,126.45,7.90826413]